bitfinex-derivatives/quotes_SOLF0:USTF0_20250130
["timestamp","ask_amount","ask_price","bid_price","bid_amount"]
[1738207583705,0.0286088,237.03,236.99,0.02247641]
[1738207584211,11.62549159,237.03,236.99,0.02247641]
[1738207585106,7.40639159,237.03,236.99,0.02247641]
[1738207585410,7.37778279,237.01,236.99,0.02247641]
[1738207585809,4.2196,237.0,236.99,0.02247641]
[1738207586501,7.40639159,237.03,236.99,0.02247641]
[1738207586706,0.0286088,237.03,237.0,7.37778279]
[1738207587103,0.0286088,237.03,237.02,7.37778279]
[1738207587312,0.0286088,237.03,237.0,7.37778279]
[1738207589014,0.0286088,237.03,237.02,11.59698279]
[1738207590513,7.37778279,237.13,237.02,7.37778279]
[1738207590710,7.37778279,237.13,237.07,4.2182]
[1738207591715,0.02957695,237.12,237.08,0.03140587]
[1738207592012,0.02957695,237.12,237.08,4.24950587]
[1738207592312,0.02957695,237.12,237.08,0.03140587]
[1738207593213,0.02957695,237.12,237.08,4.24950587]
[1738207593915,0.02957695,237.12,237.08,0.03140587]
[1738207594110,0.02957695,237.12,237.09,7.37778279]
[1738207594412,0.02957695,237.12,237.08,0.03140587]
[1738207594611,7.40735974,237.12,237.08,0.03140587]
[1738207595216,7.37778279,237.21,237.11,7.37778279]
[1738207595420,7.37778279,237.23,237.14,7.37778279]
[1738207595716,7.37778279,237.23,237.17,4.2165]
[1738207596014,7.37778279,237.19,237.12,7.37778279]
[1738207596210,7.37778279,237.17,237.1,7.37778279]
[1738207596410,7.37778279,237.17,237.13,4.2171]
[1738207596611,7.37778279,237.17,237.13,4.24863732]
[1738207597308,7.37778279,237.15,237.13,0.03153732]
[1738207598216,11.59468279,237.15,237.13,0.03153732]
[1738207599414,7.37778279,237.15,237.13,0.03153732]
[1738207601517,7.37778279,237.17,237.13,0.03153732]
[1738207601718,7.37778279,237.17,237.13,4.24873732]
[1738207601918,1.38523598,237.18,237.13,0.03153732]
[1738207602509,0.02723598,237.18,237.17,7.37778279]
[1738207604208,0.02723598,237.18,237.17,11.59428279]
[1738207608818,3.598e-05,237.18,237.17,11.59428279]
[1738207612526,11.61468279,237.31,237.17,7.37778279]
[1738207612826,11.61468279,237.31,237.26,4.2148]
[1738207613027,7.37778279,237.27,237.2,7.37778279]
[1738207613827,0.03186241,237.26,237.21,0.02993001]
[1738207614022,0.03186241,237.26,237.24,4.2153]
[1738207614830,0.03186241,237.26,237.25,4.2151]
[1738207615325,0.03186241,237.26,237.22,7.37778279]
[1738207615526,0.03186241,237.26,237.23,4.2153]
[1738207615829,0.03186241,237.26,237.22,7.37778279]
[1738207617130,0.03186241,237.26,237.24,4.2153]
[1738207619030,0.03186241,237.26,237.21,0.02993001]
[1738207620224,4.24686241,237.26,237.21,4.24573001]
[1738207620726,7.37778279,237.25,237.21,0.02993001]
[1738207621029,7.37778279,237.23,237.21,0.02993001]
[1738207621330,11.59328279,237.23,237.21,0.02993001]
[1738207623940,7.37778279,237.25,237.21,0.02993001]
[1738207624938,7.37778279,237.25,237.21,4.24573001]
[1738207625738,0.03186241,237.26,237.22,7.37778279]
[1738207626129,0.03186241,237.26,237.24,7.37778279]
[1738207626441,0.03186241,237.26,237.25,4.2151]
[1738207626631,7.37778279,237.37,237.25,4.2151]
[1738207626838,7.37778279,237.39,237.3,7.37778279]
[1738207627533,7.37778279,237.37,237.3,11.59188279]
[1738207627840,0.03198717,237.36,237.31,0.03053893]
[1738207631144,4.2136,237.34,237.31,0.03053893]
[1738207631341,7.37778279,237.33,237.31,0.03053893]
[1738207632643,4.2139,237.32,237.31,0.03053893]
[1738207632840,7.37778279,237.33,237.22,7.37778279]
[1738207633035,4.3619,237.43,237.22,7.37778279]
[1738207633036,7.37778279,237.29,237.22,7.37778279]
[1738207633945,0.02669985,237.28,237.23,0.02945687]
[1738207634142,0.02669985,237.28,237.23,4.24485687]
[1738207634642,11.59258279,237.27,237.23,0.02945687]
[1738207635542,7.37778279,237.27,237.23,0.02945687]
[1738207637545,7.37778279,237.25,237.23,0.02945687]
[1738207638250,11.59288279,237.25,237.23,0.02945687]
[1738207639150,7.37778279,237.25,237.23,0.02945687]
[1738207644855,7.37778279,237.25,237.14,7.37778279]
[1738207645154,7.37778279,237.21,237.14,7.37778279]
[1738207646052,0.03240682,237.2,237.16,4.2167]
[1738207646449,0.03240682,237.2,237.15,0.02908964]
[1738207646647,0.03240682,237.2,237.17,4.2165]
[1738207646851,0.03240682,237.2,237.15,0.02908964]
[1738207647053,0.03240682,237.2,237.18,7.37778279]
[1738207647650,0.03240682,237.2,237.19,4.2162]
[1738207648253,7.37778279,237.33,237.28,4.2145]
[1738207648651,11.50595843,237.37,237.28,4.2145]
[1738207648847,11.50595843,237.37,237.25,11.50595843]
[1738207649148,5.5966,237.38,237.31,4.214]
[1738207649356,0.02773705,237.37,237.32,0.02757702]
[1738207650856,0.02773705,237.37,237.33,4.2137]
[1738207652355,0.02773705,237.37,237.32,0.02757702]
[1738207653546,0.02773705,237.37,237.32,4.24137702]
[1738207653752,0.02773705,237.37,237.32,0.02757702]
[1738207654253,0.02773705,237.37,237.35,4.2133]
[1738207655455,6.9085,237.51,237.44,4.2117]
[1738207655954,2.6978,237.51,237.38,11.50595843]
[1738207656155,6.9083,237.51,237.45,4.2115]
[1738207656657,0.02681625,237.5,237.46,0.02729963]
[1738207658652,15.71705843,237.48,237.46,0.02729963]
[1738207659962,0.02681625,237.5,237.46,0.02729963]
[1738207661362,11.50595843,237.47,237.27,11.50595843]
[1738207661659,11.50595843,237.4,237.27,11.50595843]
[1738207662362,0.02904159,237.36,237.31,0.02941385]
[1738207663664,0.02904159,237.36,237.33,4.2137]
[1738207663967,0.02904159,237.36,237.31,0.02941385]
[1738207664361,0.02904159,237.36,237.34,4.2134]
[1738207665362,0.02904159,237.36,237.31,0.02941385]
[1738207666567,0.02904159,237.36,237.33,4.2137]
[1738207666761,0.02904159,237.36,237.31,11.53537228]
[1738207667965,0.02904159,237.36,237.34,15.71945843]
[1738207669067,0.02904159,237.36,237.34,11.50595843]
[1738207669362,0.02904159,237.36,237.35,4.2134]
[1738207670059,4.2117,237.45,237.4,4.2123]
[1738207670263,1.4332,237.48,237.34,11.50595843]
[1738207670264,4.2115,237.46,237.34,11.50595843]
[1738207670458,1.4332,237.48,237.34,11.50595843]
[1738207670658,1.4332,237.48,237.42,4.2121]
[1738207671064,4.23884333,237.47,237.43,0.02804387]
[1738207671963,0.02754333,237.47,237.43,0.02804387]
[1738207672771,4.23884333,237.47,237.43,0.02804387]
[1738207672973,0.02754333,237.47,237.43,0.02804387]
[1738207673273,4.2118,237.44,237.43,0.02804387]
[1738207674570,4.2123,237.41,237.28,11.50595843]
[1738207674776,11.50595843,237.43,237.28,11.50595843]
[1738207675674,0.02904813,237.38,237.33,0.02943059]
[1738207675871,4.2118,237.44,237.38,4.2128]
[1738207676174,11.50595843,237.46,237.38,4.2128]
[1738207676376,0.0279646,237.43,237.38,4.2128]
[1738207676575,4.2399646,237.43,237.4,0.02804553]
[1738207676874,4.2399646,237.43,237.31,11.50595843]
[1738207677077,4.2399646,237.43,237.39,0.03048436]
[1738207677975,0.0279646,237.43,237.39,0.03048436]
[1738207679072,0.0279646,237.43,237.41,4.2121]
[1738207680783,4.2399646,237.43,237.39,0.03048436]
[1738207682081,0.0279646,237.43,237.39,0.03048436]
[1738207683477,0.0279646,237.43,237.42,4.2121]
[1738207686187,11.50595843,237.55,237.48,4.2109]
[1738207686987,11.50595843,237.55,237.4,11.50595843]
[1738207687193,0.03152012,237.51,237.47,0.0294861]
[1738207687584,4.211,237.48,237.47,0.0294861]
[1738207688692,11.50595843,237.49,237.39,4.2125]
[1738207688987,11.50595843,237.46,237.34,1.3574]
[1738207689187,11.50595843,237.46,237.38,4.2128]
[1738207689387,4.2117,237.45,237.38,4.2128]
[1738207689993,4.23940343,237.44,237.39,0.03099141]
[1738207691894,0.02750343,237.44,237.39,0.03099141]
[1738207692592,0.02750343,237.44,237.4,4.2125]
[1738207692787,0.02750343,237.44,237.39,0.03099141]
[1738207693292,4.2122,237.42,237.39,0.03099141]
[1738207695690,4.2119,237.43,237.39,0.03099141]
[1738207696989,0.02750343,237.44,237.39,0.03099141]
[1738207697292,0.02750343,237.44,237.4,4.2125]
[1738207697795,0.02750343,237.44,237.39,0.03099141]
[1738207698596,4.2123,237.41,237.39,0.03099141]
[1738207700193,4.2121,237.43,237.39,0.03099141]
[1738207701901,0.02750343,237.44,237.39,0.03099141]
[1738207703205,0.02750343,237.44,237.43,4.2119]
[1738207709408,0.02750343,237.44,237.42,4.2121]
[1738207710809,0.02750343,237.44,237.39,0.03099141]
[1738207711012,0.02750343,237.44,237.43,4.2119]
[1738207712000,0.02750343,237.44,237.39,0.03099141]
[1738207712202,4.2123,237.41,237.39,0.03099141]
[1738207712910,0.02750343,237.44,237.39,0.03099141]
[1738207713606,4.2121,237.42,237.39,0.03099141]
[1738207713802,0.02750343,237.44,237.39,0.03099141]
[1738207715214,4.23940343,237.44,237.39,0.03099141]
[1738207715413,0.02750343,237.44,237.39,0.03099141]
[1738207716407,0.02750343,237.44,237.39,11.53694984]
[1738207717013,0.02750343,237.44,237.43,4.2119]
[1738207720216,0.02750343,237.44,237.41,4.2122]
[1738207720413,0.02750343,237.44,237.39,0.03099141]
[1738207720915,0.02750343,237.44,237.43,4.2119]
[1738207724423,0.02750343,237.44,237.41,4.2121]
[1738207724621,0.02750343,237.44,237.39,0.03099141]
[1738207725520,4.2119,237.43,237.39,0.03099141]
[1738207725717,0.02750343,237.44,237.39,0.03099141]
[1738207726021,0.02750343,237.44,237.4,4.2124]
[1738207726321,0.02750343,237.44,237.39,0.03099141]
[1738207726722,0.02750343,237.44,237.43,4.2119]
[1738207734524,0.02750343,237.44,237.43,11.56511854]
[1738207735032,0.02750343,237.44,237.43,4.2119]
[1738207736931,0.02750343,237.44,237.43,11.56511854]
[1738207741634,0.02750343,237.44,237.43,4.2119]
[1738207741834,0.02750343,237.44,237.39,0.03099141]
[1738207742334,0.02750343,237.44,237.42,4.2121]
[1738207742528,0.02750343,237.44,237.39,7.38420995]
[1738207743436,0.02750343,237.44,237.41,7.35321854]
[1738207744534,0.02750343,237.44,237.43,11.56511854]
[1738207749243,3.43e-06,237.44,237.43,11.56511854]
[1738207749939,7.35322197,237.44,237.39,0.03099141]
[1738207751145,11.56502197,237.44,237.39,0.03099141]
[1738207752148,11.56502197,237.44,237.39,4.24359141]
[1738207752649,4.21180343,237.44,237.39,4.24359141]
[1738207755440,3.43e-06,237.44,237.39,0.03099141]
[1738207755646,3.43e-06,237.44,237.4,4.2125]
[1738207759953,3.43e-06,237.44,237.4,4.2124]
[1738207760149,3.43e-06,237.44,237.39,0.03099141]
[1738207761146,3.43e-06,237.44,237.42,4.2121]
[1738207764149,3.43e-06,237.44,237.39,0.03099141]
[1738207764359,3.43e-06,237.44,237.43,4.2119]
[1738207774559,3.43e-06,237.44,237.43,11.56377602]
[1738207776060,3.43e-06,237.44,237.43,4.2119]
[1738207781265,3.43e-06,237.44,237.41,4.2122]
[1738207781464,3.43e-06,237.44,237.39,0.03099141]
[1738207781764,3.43e-06,237.44,237.41,4.2123]
[1738207791074,3.43e-06,237.44,237.39,0.03099141]
[1738207792075,3.43e-06,237.44,237.42,4.212]
[1738207801883,7.35187945,237.44,237.39,4.24359141]
[1738207802083,7.35187945,237.44,237.39,0.03099141]
[1738207802283,3.43e-06,237.44,237.39,0.03099141]
[1738207802880,3.43e-06,237.44,237.41,4.2123]
[1738207803080,3.43e-06,237.44,237.41,7.35187602]
[1738207803993,3.43e-06,237.44,237.42,4.2121]
[1738207804194,3.43e-06,237.44,237.41,7.35187602]
[1738207804493,3.43e-06,237.44,237.39,7.38286743]
[1738207804693,7.35187945,237.44,237.39,4.24349141]
[1738207804885,7.35187945,237.44,237.39,0.03099141]
[1738207805887,7.35187945,237.44,237.4,4.2125]
[1738207807489,3.43e-06,237.44,237.39,7.38286743]
[1738207809189,3.43e-06,237.44,237.42,4.2121]
[1738207810493,7.35187602,237.43,237.39,0.03099141]
[1738207810688,4.2125,237.4,237.39,0.03099141]
[1738207811293,7.35187602,237.41,237.39,0.03099141]
[1738207811992,7.35187602,237.43,237.39,0.03099141]
[1738207812189,7.35187602,237.43,237.39,4.24359141]
[1738207812390,3.43e-06,237.44,237.39,4.24359141]
[1738207812695,3.43e-06,237.44,237.39,0.03099141]
[1738207812888,3.43e-06,237.44,237.41,4.2122]
[1738207813089,3.43e-06,237.44,237.39,0.03099141]
[1738207815096,3.43e-06,237.44,237.41,4.2123]
[1738207815994,3.43e-06,237.44,237.39,0.03099141]
[1738207816201,3.43e-06,237.44,237.43,4.2119]
[1738207817499,3.43e-06,237.44,237.42,4.2121]
[1738207818693,7.35187945,237.44,237.4,4.2123]
[1738207821406,7.35187602,237.42,237.39,0.03099141]
[1738207821607,7.35187602,237.4,237.39,0.03099141]
[1738207823303,7.35187602,237.4,237.28,7.35187602]
[1738207823509,7.35187602,237.35,237.28,11.56637602]
[1738207823709,7.35187602,237.35,237.28,7.35187602]
[1738207824303,4.2135,237.34,237.28,7.35187602]
[1738207824609,4.24196468,237.34,237.29,0.03204768]
[1738207825204,0.02846468,237.34,237.29,0.03204768]
[1738207826108,0.02846468,237.34,237.3,4.2141]
[1738207827010,0.02846468,237.34,237.31,4.214]
[1738207827401,0.02846468,237.34,237.29,0.03204768]
[1738207829113,0.02846468,237.34,237.29,4.24644768]
[1738207830206,0.02846468,237.34,237.3,4.2142]
[1738207830811,0.02846468,237.34,237.29,0.03204768]
[1738207831011,0.02846468,237.34,237.31,4.214]
[1738207832713,0.02846468,237.34,237.29,0.03204768]
[1738207832911,0.02846468,237.34,237.32,4.2138]
[1738207833609,0.02846468,237.34,237.33,4.2137]
[1738207834518,70.49740819,237.56,237.32,7.35187602]
[1738207834519,7.35187602,237.45,237.41,4.2123]
[1738207835009,7.35187602,237.45,237.39,11.56437602]
[1738207835311,7.35187602,237.45,237.37,7.35187602]
[1738207835514,0.02718572,237.44,237.4,0.03199807]
[1738207836111,0.02718572,237.44,237.4,4.24439807]
[1738207838613,0.02718572,237.44,237.41,4.2122]
[1738207839416,0.02718572,237.44,237.4,0.03199807]
[1738207839417,7.35187602,237.43,237.4,0.03199807]
[1738207839609,11.56417602,237.41,237.4,0.03199807]
[1738207845529,7.35187602,237.41,237.4,0.03199807]
[1738207847123,7.35187602,237.43,237.4,0.03199807]
[1738207847521,0.02718572,237.44,237.4,4.24439807]
[1738207847721,0.02718572,237.44,237.4,0.03199807]
[1738207849129,0.02718572,237.44,237.42,4.2121]
[1738207850222,0.02718572,237.44,237.4,0.03199807]
[1738207850524,0.02718572,237.44,237.43,4.2119]
[1738207852328,0.02718572,237.44,237.4,0.03199807]
[1738207852627,0.02718572,237.44,237.41,4.2122]
[1738207853623,0.02718572,237.44,237.4,0.03199807]
[1738207853820,7.35187602,237.41,237.4,0.03199807]
[1738207854631,11.56417602,237.41,237.4,0.03199807]
[1738207854832,0.02718572,237.44,237.4,0.03199807]
[1738207854833,7.35187602,237.43,237.4,0.03199807]
[1738207855131,0.02718572,237.44,237.4,0.03199807]
[1738207855629,7.35187602,237.43,237.4,0.03199807]
[1738207863338,7.35187602,237.43,237.4,4.24439807]
[1738207865138,0.02718572,237.44,237.4,0.03199807]
[1738207865536,0.02718572,237.44,237.42,7.35187602]
[1738207866242,7.35187602,237.43,237.4,0.03199807]
[1738207866438,7.35187602,237.41,237.4,0.03199807]
[1738207867235,11.56417602,237.41,237.4,0.03199807]
[1738207868539,4.2123,237.41,237.4,0.03199807]
[1738207868744,0.02718572,237.44,237.4,7.38387409]
[1738207869645,0.02718572,237.44,237.42,4.212]
[1738207870147,0.02718572,237.44,237.42,11.56387602]
[1738207870348,24.89289867,237.55,237.42,7.35187602]
[1738207870547,17.54102265,237.55,237.5,7.35187602]
[1738207871043,24.89289867,237.55,237.48,7.35187602]
[1738207871250,24.89289867,237.55,237.46,7.35187602]
[1738207871444,7.37892052,237.53,237.49,0.02696984]
[1738207871845,7.35187602,237.51,237.49,0.02696984]
[1738207872340,11.56247602,237.51,237.49,0.02696984]
[1738207874550,7.35187602,237.51,237.49,0.02696984]
[1738207874752,0.0270445,237.53,237.49,0.02696984]
[1738207874753,11.58912052,237.53,237.49,0.02696984]
[1738207875153,0.0270445,237.53,237.51,4.2105]
[1738207876747,0.0270445,237.53,237.52,7.35187602]
[1738207880154,7.37892052,237.53,237.49,0.02696984]
[1738207880956,0.0270445,237.53,237.49,0.02696984]
[1738207881255,4.2372445,237.53,237.49,0.02696984]
[1738207881450,0.0270445,237.53,237.49,0.02696984]
[1738207881960,0.0270445,237.53,237.49,4.23786984]
[1738207882159,0.0270445,237.53,237.5,7.35187602]
[1738207884057,0.0270445,237.53,237.51,4.2105]
[1738207885059,7.37892052,237.53,237.49,0.02696984]
[1738207886156,0.0270445,237.53,237.49,0.02696984]
[1738207886561,0.0270445,237.53,237.5,4.2107]
[1738207886759,0.0270445,237.53,237.49,0.02696984]
[1738207887161,7.37892052,237.53,237.49,0.02696984]
[1738207888559,4.21,237.54,237.49,0.02696984]
[1738207888764,10.7280302,237.74,237.68,7.35187602]
[1738207889058,46.7760604,237.75,237.73,7.35187602]
[1738207889258,70.16409061,237.77,237.73,7.35187602]
[1738207889460,70.16409061,237.77,237.76,7.35187602]
[1738207890163,70.16409061,237.77,237.76,11.55797602]
[1738207890462,29.85478382,237.77,237.76,11.55797602]
[1738207890761,16.11358344,237.77,237.76,15.65906823]
[1738207890962,15.69788344,237.77,237.76,15.65906823]
[1738207891163,15.46998344,237.77,237.76,15.65906823]
[1738207891364,0.03228861,237.79,237.76,11.45296823]
[1738207891562,8.861e-05,237.79,237.78,4.2057]
[1738207892157,1.3813,237.9,237.76,4.206]
[1738207892363,1.3813,237.9,237.75,11.45296823]
[1738207892565,11.45296823,237.88,237.7,14.39296823]
[1738207892866,4.2042,237.87,237.74,4.2064]
[1738207893067,0.02705627,237.81,237.77,0.02762489]
[1738207895362,0.02705627,237.81,237.77,11.48059312]
[1738207895571,5.627e-05,237.81,237.8,11.45296823]
[1738207896568,5.627e-05,237.81,237.79,4.2055]
[1738207898061,5.627e-05,237.81,237.77,18.35086832]
[1738207898062,5.627e-05,237.81,237.77,0.02762489]
[1738207898463,5.627e-05,237.81,237.73,4.2066]
[1738207899568,5.627e-05,237.81,237.75,0.02795145]
[1738207899769,5.627e-05,237.81,237.76,4.206]
[1738207900271,5.627e-05,237.81,237.77,4.2058]
[1738207900474,5.627e-05,237.81,237.75,0.02795145]
[1738207901170,5.627e-05,237.81,237.79,4.2055]
[1738207902269,2.7813,237.9,237.76,18.32324343]
[1738207902669,2.7813,237.9,237.72,18.32324343]
[1738207902874,4.2044,237.86,237.78,4.2057]
[1738207903069,2.7813,237.9,237.72,18.32324343]
[1738207903375,0.0278423,237.83,237.79,0.03212248]
[1738207903573,0.0278423,237.83,237.82,4.205]
[1738207905876,2.7813,237.9,237.87,4.2041]
[1738207906176,2.7813,237.9,237.8,18.32324343]
[1738207906369,2.7813,237.9,237.83,4.2048]
[1738207906566,4.2043,237.86,237.77,143.94435996]
[1738207906767,4.17486088,237.86,237.77,143.94435996]
[1738207906966,0.03087816,237.84,237.8,4.2052]
[1738207908174,0.03087816,237.84,237.81,4.2052]
[1738207908378,2.7813,237.9,237.79,0.03214231]
[1738207908673,4.2053,237.81,237.79,0.03214231]
[1738207911073,0.02874968,237.82,237.79,0.03214231]
[1738207911779,4.23374968,237.82,237.79,0.03214231]
[1738207912278,0.02874968,237.82,237.79,0.03214231]
[1738207913281,4.2046,237.85,237.79,0.03214231]
[1738207914179,4.2047,237.84,237.79,0.03214231]
[1738207914483,4.23704502,237.84,237.79,0.03214231]
[1738207915081,18.32324343,237.87,237.79,0.03214231]
[1738207915683,4.2044,237.86,237.79,4.23764231]
[1738207916391,0.02974194,237.85,237.79,4.23764231]
[1738207916586,0.02974194,237.85,237.8,4.2053]
[1738207917387,0.02974194,237.85,237.79,0.03214231]
[1738207917592,0.02974194,237.85,237.84,4.2047]
[1738207918996,4.203,237.94,237.83,143.94435996]
[1738207919192,1.435,237.95,237.81,11.44995907]
[1738207919499,1.435,237.95,237.84,11.44995907]
[1738207919690,1.435,237.95,237.88,4.2039]
[1738207919892,2.7567,237.98,237.85,11.44995907]
[1738207920192,0.02863022,237.94,237.89,0.02753325]
[1738207920392,0.02863022,237.94,237.92,4.2032]
[1738207920796,0.02863022,237.94,237.89,0.02753325]
[1738207920999,0.02863022,237.94,237.91,4.2034]
[1738207921192,0.02863022,237.94,237.89,0.02753325]
[1738207921794,11.44995907,238.0,237.91,143.27986826]
[1738207922094,4.2021,237.99,237.91,147.48316826]
[1738207922488,4.2021,237.99,237.93,143.27986826]
[1738207922694,15.65185907,238.0,237.93,143.27986826]
[1738207923194,11.44995907,238.0,237.94,0.02804687]
[1738207923495,4.202,237.99,237.94,0.02804687]
[1738207923696,11.44995907,237.97,237.94,0.02804687]
[1738207923890,11.44995907,237.97,237.93,143.27986826]
[1738207924494,4.2028,237.95,237.87,4.204]
[1738207924996,4.2028,237.95,237.82,11.44995907]
[1738207924997,0.02944981,237.93,237.89,0.02665312]
[1738207927402,4.2035,237.91,237.89,0.02665312]
[1738207927702,0.02944981,237.93,237.89,0.02665312]
[1738207928501,4.23264981,237.93,237.89,0.02665312]
[1738207929606,0.02944981,237.93,237.89,0.02665312]
[1738207932506,0.02944981,237.93,237.89,4.23035312]
[1738207933909,0.02944981,237.93,237.89,0.02665312]
[1738207934110,4.2036,237.9,237.89,0.02665312]
[1738207934311,0.02944981,237.93,237.89,0.02665312]
[1738207935310,0.02944981,237.93,237.9,4.2036]
[1738207936607,0.02944981,237.93,237.89,0.02665312]
[1738207936805,4.2033,237.92,237.89,0.02665312]
[1738207937010,0.02944981,237.93,237.89,0.02665312]
[1738207937511,4.23264981,237.93,237.89,0.02665312]
[1738207937913,0.02944981,237.93,237.89,0.02665312]
[1738207939116,4.2035,237.91,237.89,0.02665312]
[1738207939815,4.2036,237.9,237.89,0.02665312]
[1738207940413,4.2034,237.91,237.89,0.02665312]
[1738207942010,4.2033,237.92,237.89,0.02665312]
[1738207943513,4.2034,237.91,237.89,0.02665312]
[1738207946317,0.02944981,237.93,237.82,11.44995907]
[1738207946517,11.47940888,237.93,237.81,4.2052]
[1738207946912,0.02944981,237.93,237.82,11.44995907]
[1738207947413,11.44995907,237.9,237.73,155.3783341]
[1738207947716,2.7648,237.89,237.73,155.3783341]
[1738207947918,0.02773422,237.84,237.79,0.02670716]
[1738207949716,0.02773422,237.84,237.82,4.205]
[1738207953223,0.02773422,237.84,237.79,143.95508219]
[1738207953924,0.02773422,237.84,237.82,4.205]
[1738207954516,4.2031,237.94,237.81,11.44995907]
[1738207954720,4.2031,237.94,237.89,4.2037]
[1738207954926,2.7987,237.95,237.89,4.2037]
[1738207955425,2.7987,237.95,237.85,4.2045]
[1738207955926,0.02680599,237.92,237.88,0.0268208]
[1738207956926,4.23020599,237.92,237.88,0.0268208]
[1738207957123,0.02680599,237.92,237.88,0.0268208]
[1738207957525,4.23010599,237.92,237.88,0.0268208]
[1738207957724,0.02680599,237.92,237.88,0.0268208]
[1738207958327,4.2036,237.9,237.88,0.0268208]
[1738207958523,0.02680599,237.92,237.88,0.0268208]
[1738207959525,4.2036,237.9,237.88,0.0268208]
[1738207959921,0.02680599,237.92,237.88,0.0268208]
[1738207961021,0.02680599,237.92,237.88,4.2307208]
[1738207961223,0.02680599,237.92,237.88,0.0268208]
[1738207961418,0.02680599,237.92,237.89,4.2038]
[1738207962729,0.02680599,237.92,237.88,0.0268208]
[1738207963623,4.23010599,237.92,237.88,0.0268208]
[1738207964525,0.02680599,237.92,237.88,0.0268208]
[1738207967925,4.23010599,237.92,237.88,0.0268208]
[1738207968732,0.02680599,237.92,237.88,4.2307208]
[1738207970134,0.02680599,237.92,237.88,0.0268208]
[1738207973142,4.2035,237.91,237.88,0.0268208]
[1738207973343,7.35460122,237.92,237.88,0.0268208]
[1738207973542,7.32779523,237.9,237.88,0.0268208]
[1738207974342,7.32779523,237.9,237.8,143.92837503]
[1738207974542,7.32779523,237.86,237.8,143.92837503]
[1738207974841,7.32779523,237.88,237.8,143.92837503]
[1738207975543,7.35670216,237.86,237.82,0.03078841]
[1738207975744,7.32779523,237.86,237.82,0.03078841]
[1738207975940,7.35759711,237.86,237.82,0.03078841]
[1738207978645,4.2045,237.85,237.82,0.03078841]
[1738207979145,7.35759711,237.86,237.82,0.03078841]
[1738207980139,4.2048,237.83,237.82,0.03078841]
[1738207980945,0.02980188,237.86,237.82,0.03078841]
[1738207981144,0.02980188,237.86,237.83,7.32779523]
[1738207982141,0.02980188,237.86,237.85,4.2045]
[1738207982344,0.02980188,237.86,237.83,7.32779523]
[1738207982644,0.02980188,237.86,237.82,0.03078841]
[1738207983149,4.23410188,237.86,237.82,0.03078841]
[1738207983348,0.02980188,237.86,237.82,0.03078841]
[1738207984447,7.35759711,237.86,237.82,0.03078841]
[1738207985848,4.2045,237.85,237.82,0.03078841]
[1738207986452,7.35759711,237.86,237.82,0.03078841]
[1738207986641,4.2047,237.84,237.82,0.03078841]
[1738207987151,4.2045,237.85,237.82,0.03078841]
[1738207988355,7.35759711,237.86,237.82,0.03078841]
[1738207988850,0.02980188,237.86,237.82,0.03078841]
[1738207989052,0.02980188,237.86,237.82,4.23578841]
[1738207989247,0.02980188,237.86,237.83,7.32779523]
[1738207989649,0.02980188,237.86,237.84,4.2047]
[1738207989953,0.02980188,237.86,237.85,7.32779523]
[1738207990450,0.02980188,237.86,237.85,11.53229523]
[1738207990748,0.02980188,237.86,237.85,4.2045]
[1738207992956,11.44930679,238.0,237.91,4.2033]
[1738207993155,4.2022,237.98,237.85,11.44930679]
[1738207993945,4.2022,237.98,237.91,4.2034]
[1738207994148,0.02855663,237.94,237.91,4.2034]
[1738207994946,0.02855663,237.94,237.93,4.2031]
[1738207999761,4.2011,238.05,237.91,11.44930679]
[1738207999961,4.2011,238.05,237.97,11.44930679]
[1738208000261,4.2012,238.04,237.93,11.44930679]
[1738208000658,15.47480679,238.07,237.97,4.2023]
[1738208000861,15.47480679,238.07,237.96,0.02824331]
[1738208001157,4.0255,238.07,237.96,0.02824331]
[1738208002061,4.2009,238.06,238.0,4.2018]
[1738208002461,4.2009,238.06,238.01,0.02938861]
[1738208003062,4.0255,238.07,238.01,0.02938861]
[1738208003460,8.2261,238.07,238.01,0.02938861]
[1738208004263,19.67540679,238.07,238.01,0.02938861]
[1738208007759,19.67540679,238.07,238.01,4.23088861]
[1738208007960,11.44930679,238.14,238.01,0.02938861]
[1738208008164,11.44930679,238.2,238.07,11.44930679]
[1738208008465,15.64760679,238.2,238.07,11.44930679]
[1738208008666,15.64760679,238.2,238.11,0.02957242]
[1738208009065,15.64760679,238.2,238.13,4.1995]
[1738208009266,15.64760679,238.2,238.11,0.02957242]
[1738208009267,11.44930679,238.29,238.14,11.44930679]
[1738208009465,11.44930679,238.29,238.17,11.44930679]
[1738208009666,11.44930679,238.29,238.19,0.03128019]
[1738208009868,4.1969,238.28,238.2,4.1983]
[1738208010167,11.44930679,238.29,238.19,0.03128019]
[1738208010359,12.89640679,238.35,238.26,4.1972]
[1738208010565,11.44930679,238.41,238.26,11.44930679]
[1738208010766,11.44930679,238.41,238.28,0.02970834]
[1738208010962,4.1955,238.37,238.28,0.02970834]
[1738208011166,11.44930679,238.38,238.28,0.02970834]